Cogmind - Beta 12 *** ADVENTURER MODE // 2023.09.15 @ 17:59:00 Player: Daemos Result: Destroyed by H-55 Commando with Gauss Rifle Performance ------------- Evolutions (2) 1000 Regions Visited (6) 1200 Robots Destroyed (89) 445 Value Destroyed (3017) 3017 Prototype IDs (31) 620 Alien Tech Used (0) 0 Bonus (2014) 2014 TOTAL SCORE: 8296 Bonus ------- High Alert Combat Kills 355 Follower Combat Kills 159 Entered Garrisons 200 Used RIF Installer 1000 Aligned with FarCom 300 Cogmind --------- Core Integrity 0/550 Matter 234/300 Energy 195/200 System Corruption 1% Temperature Cool (9) Movement Walking (120) Location -8/Garrison Parts ------- > --- POWER (2) -------- Light Deuterium Engine Light Nuclear Core > --- PROPULSION (3) --- Aluminum Leg Aluminum Leg Improved Aluminum Leg (fused) > --- UTILITY (4) ------ Machine Analyzer Improved Signal Interpreter Improved Targeting Computer Core Shielding > --- WEAPON (2) ------- Heavy Machine Gun Katana > --- INVENTORY (5) ---- Advanced Weight Redist. System Armor Integrity Analyzer Improved Utility Shielding System Shield Heavy Machine Gun Peak State ------------ > --- POWER ------------ Light Nuclear Core Light Angular Momentum Engine > --- PROPULSION ------- Aluminum Leg Carbon-fiber Leg Carbon-fiber Leg > --- UTILITY ---------- Advanced Heat Sink Machine Analyzer Improved Signal Interpreter Improved Targeting Computer > --- WEAPON ----------- Heavy Laser Heavy Laser > --- INVENTORY -------- Light Deuterium Engine Advanced Weight Redist. System System Shield Enhanced Autogun Mining Claw [Rating: 37] Favorites ----------- Power Light Nuclear Core Engine Light Deuterium Engine Power Core Light Nuclear Core Propulsion Flight Unit Leg Aluminum Leg Wheel Wheel Hover Unit Aerolev Unit Flight Unit Flight Unit Utility Improved Signal Interpreter Device Advanced Heat Sink Storage Small Storage Unit Processor Improved Signal Interpreter Protection Core Shielding Weapon Light Cannon Energy Gun Heavy Laser Energy Cannon Heavy Particle Cannon Ballistic Gun Enhanced Autogun Ballistic Cannon Light Cannon Slashing Weapon Mining Claw Build | -11 -10 -10 -10 -9 -8 -8 ------- Run | Jun Mat Min Exi Min Mat Gar Slots Evolved 4 | . . . . . 4 . Power 1 | . . . . . 1 . Propulsion 1 | . . . . . 1 . Utility 2 | . . . . . 2 . Weapon . | . . . . . . . Parts Attached 109 | 6 14 . . . 49 40 Power 26 | 1 2 . . . 11 12 Engine 15 | 1 1 . . . 8 5 Core 11 | . 1 . . . 3 7 Reactor . | . . . . . . . Propulsion 40 | 2 5 . . . 19 14 Treads . | . . . . . . . Leg 13 | . . . . . . 13 Wheel 2 | 2 . . . . . . Hover 1 | . . . . . 1 . Flight 24 | . 5 . . . 18 1 Utility 14 | 1 3 . . . 8 2 Device 5 | . 1 . . . 3 1 Storage 1 | 1 . . . . . . Processor 6 | . 2 . . . 4 . Hackware . | . . . . . . . Protection 2 | . . . . . 1 1 Artifact . | . . . . . . . Weapon 29 | 2 4 . . . 11 12 Energy Gun 8 | 1 1 . . . 3 3 Energy Cannon 2 | . . . . . 2 . Ballistic Gun 12 | 1 1 . . . 3 7 Ballistic Cannon 3 | . 2 . . . 1 . Launcher . | . . . . . . . Special Weapon . | . . . . . . . Impact Weapon . | . . . . . . . Slashing Weapon 4 | . . . . . 2 2 Piercing Weapon . | . . . . . . . Special Melee Weapon . | . . . . . . . Unidentified Prototypes 4 | . . . . . 4 . Parts Lost 19 | . . . . . 10 9 Power 6 | . . . . . 3 3 Propulsion 6 | . . . . . 3 3 Utility 3 | . . . . . 2 1 Weapon 4 | . . . . . 2 2 Highest Loss Streak 4 | . . . . . 4 4 To Critical Strikes . | . . . . . . . Average Slot Usage (%) 92 | . 72 85 85 85 93 98 Engine 7 | . 11 . . . 9 7 Core 8 | . 1 14 14 14 6 9 Leg 9 | . . . . . . 24 Flight 17 | . 24 28 28 28 26 1 Device 4 | . . . . . 7 5 Processor 25 | . 15 28 28 28 25 27 Protection 1 | . . . . . . 3 Energy Gun 3 | . 1 . . . 2 5 Energy Cannon 2 | . . . . . 3 1 Ballistic Gun 6 | . 1 . . . 7 10 Ballistic Cannon 3 | . 11 14 14 14 2 . Naked Turns . | . . . . . . . Heaviest Build 25 | 13 13 8 8 8 20 25 Greatest Support 40 | 20 20 8 8 8 23 40 Greatest Overweight (x) 4 | . 1 . . . 1 4 Average Overweight (x) . | . . . . . . . Largest Inventory Capacity 8 | 8 8 5 5 5 5 5 Average Capacity 5 | 7 5 5 5 5 5 5 Most Carried 6 | 6 6 5 5 5 5 5 Average Carried 4 | 2 4 5 5 5 4 4 Final Capacity 8 | 8 5 5 5 5 5 5 Final Carried 6 | 6 5 5 5 5 5 5 Class Distribution -------------------- 46% | Scavenger-Mutant 24% | Mutant 15% | Sprinter 11% | Scavenger-Sprinter Dominant Class ---------------- Mutant | -10/Materials Mutant | -10/Mines Mutant | -10/Exiles Mutant | -9/Mines Sprinter | -8/Materials Scavenger-Mutant | -8/Garrison Resources | -11 -10 -10 -10 -9 -8 -8 ----------- Run | Jun Mat Min Exi Min Mat Gar Matter Collected 2518 | 90 220 266 . 8 893 1041 Remotely . | . . . . . . . Salvage Created 3328 | . 210 215 . . 1247 1656 Parts 178 | . 22 14 . . 76 66 Haulers Intercepted 2 | . . . . . 2 . Recyclers Shooed . | . . . . . . . Parts Field Recycled . | . . . . . . . Retrieved Matter . | . . . . . . . Parts Self-Destructed . | . . . . . . . Prevented . | . . . . . . . Kills | -11 -10 -10 -10 -9 -8 -8 ------- Run | Jun Mat Min Exi Min Mat Gar Combat Hostiles Destroyed 72 | . 8 5 . . 27 32 Guns 38 | . . . . . 13 25 Cannons 34 | . 8 5 . . 14 7 Classes Destroyed 12 | . 5 1 . . 3 3 Worker 1 | . . . . . 1 . Builder 1 | . 1 . . . . . Tunneler 3 | . . 2 . . 1 . Hauler 2 | . . . . . 2 . Recycler 3 | . 1 . . . 2 . Watcher 7 | . 3 . . . 4 . Swarmer 14 | . 6 . . . 8 . Grunt 40 | . 2 5 . . 11 22 Duelist 4 | . . . . . . 4 Sentry 12 | . . . . . 8 4 Hunter 1 | . . . . . . 1 Programmer 1 | . . . . . . 1 Best Kill Streak 8 | . 8 3 . . 5 4 Combat Bots Only 6 | . 6 3 . . 5 4 Max Kills in Single Turn 2 | . 1 1 . . 2 1 Gunslinging . | . . . . . . . Exploded . | . . . . . . . Melee . | . . . . . . . Uniques/NPCs Destroyed . | . . . . . . . Combat | -11 -10 -10 -10 -9 -8 -8 -------- Run | Jun Mat Min Exi Min Mat Gar Damage Taken 2744 | 5 160 53 . 23 934 1569 Core 613 | . 48 10 . 4 266 285 Absorbed by Shields . | . . . . . . . Redirected to Shielding 18 | . . . . . . 18 Regen/Repaired (Parts) 67 | . 28 . . . 39 . Core Remaining (%) 87 | 100 . . . 75 . . Volleys Fired 362 | . 29 16 . 2 173 142 Largest 2 | . 1 1 . 1 2 2 Hottest 144 | . 35 35 . 35 100 144 Shots Fired 574 | . 29 16 . 2 259 268 Gun 422 | . . . . . 179 243 Cannon 152 | . 29 16 . 2 80 25 Launcher . | . . . . . . . Special . | . . . . . . . Kinetic 418 | . 29 16 . 2 198 173 Thermal 156 | . . . . . 61 95 Explosive . | . . . . . . . Electromagnetic . | . . . . . . . Robot Hit Streak 38 | . 9 23 . . 23 38 Robot Miss Streak 3 | . 1 . . 2 3 2 Penetration Max 1 | . . . . . . 1 Secondary Targets 4 | . . . . . . 4 Max Gunslinging Chain 1 | . . . . . . 1 Shots Hit Robots 413 | . 24 16 . . 208 165 Core Hits 166 | . 14 8 . . 79 65 Critical Kills 2 | . . . . . . 2 Critical Parts Destroyed 2 | . . . . . 1 1 Critical Strikes 11 | . 2 1 . . 5 3 Burn 1 | . . . . . 1 . Destroy 4 | . . . . . 1 3 Blast 6 | . 2 1 . . 3 . Melee Attacks 11 | . . . . . 5 6 Impact . | . . . . . . . Slashing 11 | . . . . . 5 6 Piercing . | . . . . . . . Sneak Attacks 1 | . . . . . . 1 Combat Hostiles 1 | . . . . . . 1 Follow-up Attacks . | . . . . . . . Damage Inflicted 6997 | 11 425 285 . 19 3024 3233 Guns 4234 | . . . . . 1571 2663 Cannons 2529 | . 425 285 . 19 1350 450 Explosions . | . . . . . . . Melee 223 | . . . . . 103 120 Ramming 11 | 11 . . . . . . Kinetic 4534 | . 425 285 . 19 2025 1780 Thermal 2229 | . . . . . 896 1333 Explosive . | . . . . . . . Electromagnetic . | . . . . . . . Impact . | . . . . . . . Slashing 223 | . . . . . 103 120 Piercing . | . . . . . . . Highest Corruption 1 | . . . . . 1 1 Average Corruption 1 | . . . . . 1 1 Corruption Purged . | . . . . . . . Corruption Blocked . | . . . . . . . Effects 21 | . . . . . 1 20 Message Errors 3 | . . . . . . 3 Matter Fused 7 | . . . . . 1 6 Heat Flow Errors 3 | . . . . . . 3 Parts Fused 1 | . . . . . . 1 Data Loss (minor) 3 | . . . . . . 3 Data Loss (major) 1 | . . . . . . 1 Misfires 1 | . . . . . . 1 Alerts 1 | . . . . . . 1 Weapon Failures 1 | . . . . . . 1 Overload Shots . | . . . . . . . Overflow Damage 14 | . . . . . 14 . Projectiles 14 | . . . . . 14 . Explosions . | . . . . . . . Melee . | . . . . . . . Knockbacks 17 | 1 9 3 . . 4 . Impact 1 | 1 . . . . . . Kinetic 16 | . 9 3 . . 4 . Secondary . | . . . . . . . Self-Inflicted Damage 5 | 5 . . . . . . Shots . | . . . . . . . Rammed 1 | 1 . . . . . . Targets Rammed 1 | 1 . . . . . . Kicked . | . . . . . . . Crushed . | . . . . . . . Highest Temperature 366 | . 15 40 . 4 256 366 Average Temperature 72 | . 9 15 . 2 64 88 Received Heat Transfer 1278 | . 27 42 . . 444 765 Effects 4 | . . . . . . 4 Shutdowns 1 | . . . . . . 1 Energy Bleed 1 | . . . . . . 1 Interference 2 | . . . . . . 2 Siege Activations . | . . . . . . . Robots Corrupted . | . . . . . . . Combat Hostiles . | . . . . . . . Parts Fried . | . . . . . . . Impact Corruptions . | . . . . . . . Robots Melted . | . . . . . . . Combat Hostiles . | . . . . . . . Parts Melted 6 | . . . . . . 6 Heat Transferred 4218 | . . . . . 1850 2368 Parts Sabotaged . | . . . . . . . Parts Stolen . | . . . . . . . Parts Stripped . | . . . . . . . Power Chain Reactions . | . . . . . . . Missiles Intercepted . | . . . . . . . Alert | -11 -10 -10 -10 -9 -8 -8 ------- Run | Jun Mat Min Exi Min Mat Gar Peak Influence 1376 | . 224 175 . 89 410 1376 Initial 28 | . . . . . 28 22 Average 360 | . 73 116 . 88 169 663 Maximum Alert Level 4 | . 1 . . . 2 4 Low Security (%) 45 | 100 97 100 . 100 63 4 Level 1 20 | . 2 . . . 34 15 Level 2 18 | . . . . . 1 41 Level 3 8 | . . . . . . 20 Level 4 6 | . . . . . . 16 Level 5 . | . . . . . . . High Security . | . . . . . . . Max Security . | . . . . . . . Squads Dispatched 5 | . . 1 . . 4 . Investigation 2 | . . 1 . . 1 . Extermination . | . . . . . . . Reinforcement . | . . . . . . . Assault . | . . . . . . . Garrison 3 | . . . . . 3 . Intercept . | . . . . . . . Searches Triggered . | . . . . . . . Construction Impeded . | . . . . . . . Haulers Reinforced . | . . . . . . . Active Scanning Responses . | . . . . . . . Cargo Convoy Interrupts . | . . . . . . . Stealth | -11 -10 -10 -10 -9 -8 -8 --------- Run | Jun Mat Min Exi Min Mat Gar Distress Signals 6 | . 1 . . . 5 . Communications Jammed . | . . . . . . . Distress Signals . | . . . . . . . Times Spotted 110 | . 12 8 . 3 48 39 Peak Tracking Total 9 | . 7 3 . 3 7 9 Tactical Retreats 13 | . . 1 . . 9 3 Traps | -11 -10 -10 -10 -9 -8 -8 ------- Run | Jun Mat Min Exi Min Mat Gar Traps Triggered 1 | . . . . . 1 . Indirectly . | . . . . . . . Trap Hack Attempts . | . . . . . . . Triggered . | . . . . . . . Disarmed . | . . . . . . . Reprogrammed . | . . . . . . . Reused . | . . . . . . . Traps Extracted . | . . . . . . . Installed . | . . . . . . . Triggered . | . . . . . . . Machines | -11 -10 -10 -10 -9 -8 -8 ---------- Run | Jun Mat Min Exi Min Mat Gar Machines Disabled 2 | . 1 . . . . 1 Max in Single Turn 1 | . 1 . . . . 1 Machines Repaired . | . . . . . . . Machines Sabotaged . | . . . . . . . Overloaded Fab Kills . | . . . . . . . Hacking | -11 -10 -10 -10 -9 -8 -8 --------- Run | Jun Mat Min Exi Min Mat Gar Machines Accessed 32 | . 9 1 3 . 16 3 Terminals 22 | . 8 . . . 11 3 Fabricators . | . . . . . . . Repair Stations 3 | . 1 . . . 2 . Recycling Units . | . . . . . . . Scanalyzers 2 | . . . . . 2 . Garrison Access 1 | . . . . . 1 . Total Hacks 98 | . 29 1 18 . 45 5 Successful 60 | . 13 1 18 . 26 2 Failed 38 | . 16 . . . 19 3 Catastrophic 7 | . 3 . . . 4 . Database Lockouts . | . . . . . . . Manual 35 | . 9 . 1 . 25 . Terminals 65 | . 27 . . . 33 5 Fabricators . | . . . . . . . Repair Stations 7 | . 2 . . . 5 . Recycling Units . | . . . . . . . Scanalyzers 6 | . . . . . 6 . Garrison Access 1 | . . . . . 1 . Terminal Hacks 43 | . 11 1 18 . 11 2 Record 17 | . . . 17 . . . Part Schematic 4 | . . . . . 4 . Robot Analysis 1 | . . . . . 1 . Prototype ID Bank 2 | . 1 . . . 1 . Open Door 1 | . . 1 . . . . Terminal Index 1 | . 1 . . . . . Alert Level 3 | . 1 . . . 2 . Unreport Threat 2 | . 1 . . . 1 . Locate Traps 3 | . 2 . . . 1 . Transport Status 2 | . 1 . . . 1 . Hauler Manifests 1 | . 1 . . . . . Registered Components 1 | . 1 . . . . . Zone Layout 2 | . 2 . . . . . Garrison Registry 1 | . . . . . . 1 Patrol Navigation 1 | . . . . . . 1 EX-Prototype ID Bank 1 | . . . 1 . . . Fabricator Hacks . | . . . . . . . Repair Station Hacks 6 | . 2 . . . 4 . Scan Component 3 | . 1 . . . 2 . Repair 3 | . 1 . . . 2 . Recycling Unit Hacks . | . . . . . . . Scanalyzer 5 | . . . . . 5 . Insert Component 2 | . . . . . 2 . Analyze 3 | . . . . . 3 . Garrison Access Hacks 1 | . . . . . 1 . Unlock Access 1 | . . . . . 1 . Unauthorized Hacks 5 | . . . . . 5 . Terminals 5 | . . . . . 5 . Assimilate 5 | . . . . . 5 . Fabricators . | . . . . . . . Repair Stations . | . . . . . . . Recycling Units . | . . . . . . . Scanalyzers . | . . . . . . . Garrison Access . | . . . . . . . Data Cores Recovered . | . . . . . . . Used . | . . . . . . . Hacking Detections 23 | . 7 . . . 15 1 Full Trace Events 5 | . 1 . . . 3 1 Feedback Events 1 | . . . . . 1 . Corruption 1 | . . . . . 1 . Feedback Blocked . | . . . . . . . Robot Schematics Acquired . | . . . . . . . Robots Built . | . . . . . . . Authchips . | . . . . . . . Time . | . . . . . . . Total Robot Build Rating . | . . . . . . . Part Schematics Acquired 6 | . . . . . 6 . Parts Built . | . . . . . . . Authchips . | . . . . . . . Time . | . . . . . . . Total Part Build Rating . | . . . . . . . Parts Repaired 3 | . 1 . . . 2 . Time 96 | . 26 . . . 70 . Parts Recycled . | . . . . . . . Recycled Matter . | . . . . . . . Retrieved Matter . | . . . . . . . Retrieved Components . | . . . . . . . Parts Scanalyzed 2 | . . . . . 2 . Part Schematics Acquired 2 | . . . . . 2 . Parts Damaged . | . . . . . . . Bothacking | -11 -10 -10 -10 -9 -8 -8 ------------ Run | Jun Mat Min Exi Min Mat Gar Used RIF Installer 2 | . . . . . . 2 Program Shield 1 | . . . . . . 1 Robots Hacked . | . . . . . . . Non-combat . | . . . . . . . Combat . | . . . . . . . Robot Hacks Applied . | . . . . . . . Relay Couplers Released . | . . . . . . . Fabnet Peak Effective % . | . . . . . . . Robots Rewired 6 | . . . . . . 6 Allies Hacked . | . . . . . . . Hacks Repelled . | . . . . . . . Allies | -11 -10 -10 -10 -9 -8 -8 -------- Run | Jun Mat Min Exi Min Mat Gar Total Allies 11 | . . 3 . . 2 6 Largest Group 6 | . . 3 3 3 4 6 Highest-Rated Group 108 | . . 40 40 40 50 108 Highest-Rated Ally 18 | . . 16 16 16 16 18 Total Orders 13 | . . . . . 6 7 STAY 5 | . . . . . 3 2 ROAM 2 | . . . . . . 2 FOLLOW 6 | . . . . . 3 3 Ally Attacks 61 | . . . . 6 51 4 Total Damage 696 | . . . . 59 509 128 Kills 11 | . . . . 3 5 3 Allies Corrupted . | . . . . . . . Allies Melted . | . . . . . . . Intel | -11 -10 -10 -10 -9 -8 -8 ------- Run | Jun Mat Min Exi Min Mat Gar Robot Analysis Total 1 | . . . . . 1 . Derelict Logs Recovered 4 | . . 3 . 1 . . Drone Launches . | . . . . . . . Drone Recoveries . | . . . . . . . Exploration | -11 -10 -10 -10 -9 -8 -8 ------------- Run | Jun Mat Min Exi Min Mat Gar Turns Passed 6109 | 48 457 369 391 213 2234 2397 Spaces Moved 6749 | 41 814 737 815 397 2321 1624 Core 6 | 2 2 . . . . 2 Treads . | . . . . . . . Legs 1383 | . . . . . . 1383 Wheels 82 | 39 43 . . . . . Hover . | . . . . . . . Flight 5278 | . 769 737 815 397 2321 239 Fastest Speed 29 | 50 37 37 37 37 29 29 Average Speed 52 | 78 39 37 37 37 32 106 Slowest Speed 250 | 80 120 37 37 37 110 250 Overloaded Moves . | . . . . . . . Propulsion Burnouts . | . . . . . . . Robots Hopped 54 | . 4 4 . 1 45 . Cave-ins Triggered . | . . . . . . . Exploration Rate (%) 78 | 3 97 99 92 82 87 88 Regions Visited 6 Branch Regions 3 Pre-discovered Areas . | . . . . . . . Known Exits Taken 5 | . 1 1 1 1 1 . Unknown Exits Taken 1 | 1 . . . . . . Scrap Searched 3 | . . 1 . 2 . . Spaces Dug 1 | . . . . . . 1 Terrain Destroyed 1 | . . . . . . 1 Melee 1 | . . . . . . 1 Projectile . | . . . . . . . AOE . | . . . . . . . Terrain Rammed . | . . . . . . . Walls Destroyed . | . . . . . . . Machines Disabled . | . . . . . . . Actions | -11 -10 -10 -10 -9 -8 -8 --------- Run | Jun Mat Min Exi Min Mat Gar Total 8719 | 53 920 813 903 459 3523 2048 Wait 1428 | . 42 63 89 62 981 191 Move 6637 | 40 805 728 814 394 2232 1624 Hop 52 | . 4 4 . 1 43 . Pick Up 29 | 6 7 1 . . 11 4 Fast Attach 64 | 6 9 . . . 28 21 Attach 16 | . 1 . . . 11 4 Detach 5 | . . . . . 3 2 Swap 29 | . 4 . . . 10 15 Drop 72 | . 19 1 . . 26 26 Fire 362 | . 29 16 . 2 173 142 Melee 11 | . . . . . 5 6 Ram 1 | 1 . . . . . . Kick . | . . . . . . . Crush . | . . . . . . . Escape Stasis . | . . . . . . . Rewire 13 | . . . . . . 13 Trap . | . . . . . . . Miscellaneous . | . . . . . . . Route ------- -11/Junkyard -10/Materials (discovered 4 exits: *Mat x3 / *Min) -10/Mines (discovered 3 exits: *Mat x2 / *Exi) -10/Exiles (discovered 2 exits: *Min x2) -9/Mines -8/Materials (discovered 4 exits: *Fac x3 / Gar) -8/Garrison (discovered 3 exits: *Fac x3) History --------- Turn | Location | Event 15 | -11/Junkyard | Discovered new exit (range 15) 49 | -11/Junkyard | Entered Materials 173 | -10/Materials | Discovered new exit (range 16) 274 | -10/Materials | Discovered new exit (range 11) 280 | -10/Materials | Identified exit to Mines 304 | -10/Materials | Build established: Mutant 315 | -10/Materials | Repaired Ion Engine 349 | -10/Materials | Discovered new exit (range 16) 435 | -10/Materials | Discovered new exit (range 8) 456 | -10/Materials | Identified exit to Materials 506 | -10/Materials | Entered Mines 549 | -10/Mines | Met a Derelict shopkeep closing up shop 581 | -10/Mines | Learned Materials garrison access intel 583 | -10/Mines | Learned location of 1 exit from Materials 705 | -10/Mines | Assisted by bots powering up and referring to "LRC-V3" 708 | -10/Mines | Learned 4 Materials zone layouts 713 | -10/Mines | Discovered exit to Materials (range 5) 717 | -10/Mines | Found a hidden stash of uninstalled traps 757 | -10/Mines | Discovered exit to Materials (range 3) 822 | -10/Mines | Deemed a non-threat by the Exiles lab entrance 822 | -10/Mines | Discovered new exit (range 5) 824 | -10/Mines | Identified exit to Exiles 875 | -10/Mines | Entered Exiles 875 | -10/Exiles | Accompanied by 3 allies 885 | -10/Exiles | Met 8R-AWN 915 | -10/Exiles | Met EX-HEX 941 | -10/Exiles | Met EX-DEC 959 | -10/Exiles | Met EX-BIN 965 | -10/Exiles | Aligned with FarCom system 965 | -10/Exiles | Given EX-Vault access code 975 | -10/Exiles | Opened EX-Vault 999 | -10/Exiles | Warned to stay clear of 0b10 Research branches 1027 | -10/Exiles | Visited The Gauntlet 1092 | -10/Exiles | Discovered new exit (range 14) 1097 | -10/Exiles | Identified exit to Mines 1152 | -10/Exiles | Discovered exit to Mines (range 14) 1266 | -10/Exiles | Entered Mines 1266 | -9/Mines | Accompanied by 3 allies 1322 | -9/Mines | Discovered new exit (range 15) 1328 | -9/Mines | Identified exit to Materials 1362 | -9/Mines | Received a Rocket Launcher from a helpful Derelict 1479 | -9/Mines | Entered Materials 1479 | -8/Materials | Accompanied by 3 allies 1479 | -8/Materials | Evolved 4 slots: Power x1, Propulsion x1, Utility x2 1480 | -8/Materials | Identified exit to Factory 1482 | -8/Materials | Loaded intel: 1 garrison access location 1797 | -8/Materials | Lost 4 parts (1p2u1w) 2102 | -8/Materials | Build established: Scavenger-Mutant 2118 | -8/Materials | Discovered exit to Factory (range 16) 2123 | -8/Materials | Garrison activated, responded to threat 2562 | -8/Materials | Repaired Lgt. Nuclear Core 2670 | -8/Materials | Build established: Scavenger-Sprinter 2789 | -8/Materials | Repaired Imp. Flight Unit 3294 | -8/Materials | Build established: Sprinter 3704 | -8/Materials | Identified exit to Garrison 3713 | -8/Materials | Entered Garrison 3713 | -8/Garrison | Accompanied by 1 ally 3808 | -8/Garrison | Core integrity fell below 50% 3866 | -8/Garrison | Installed Relay Interface Framework 4038 | -8/Garrison | Triggered checkpoint 4184 | -8/Garrison | Triggered checkpoint 4203 | -8/Garrison | Build established: Scavenger-Mutant 4383 | -8/Garrison | Triggered checkpoint 4754 | -8/Garrison | Triggered checkpoint 4771 | -8/Garrison | Discovered exit to Factory (range 13) 4932 | -8/Garrison | Triggered checkpoint 5045 | -8/Garrison | Core integrity fell below 20% 5106 | -8/Garrison | Lost 4 parts (2n1u1w) 5208 | -8/Garrison | Discovered exit to Factory (range 15) 5262 | -8/Garrison | Discovered exit to Factory (range 78) 5262 | -8/Garrison | Discovered exit to Factory (range 58) 5262 | -8/Garrison | Discovered exit to Factory (range 4) 5648 | -8/Garrison | Triggered checkpoint 5716 | -8/Garrison | Triggered checkpoint 5787 | -8/Garrison | Expanded RIF knowledge: Program Shield 5936 | -8/Garrison | Triggered checkpoint 6110 | -8/Garrison | Destroyed by H-55 Commando with Gauss Rifle Last Messages --------------- Dropped Hvy. Assault Rifle. Acquired Hvy. Machine Gun. Initiating installation procedure... Expanded RIF knowledge: Program Shield. ALERT: Garrison interior compromised. Acquired 59 matter. Dropped Aluminum Leg. Acquired 45 matter. Dropped Aluminum Leg. Dropped Lgt. Nuclear Core. ALERT: Garrison interior compromised. System corrupted: Heat flow error (+177). System corrupted: Component data lost. Acquired 40 matter. Acquired 27 matter. Sneak attack on Y-45 Defender. Y-45 Defender springs to life. Critical hit (Burn: +37). Penetrated by Slug. Slug penetrates Reinforced Barrier. Map ----- +----------------------------------------------------+ | ????????????????????????????????????# | | ????????????????????????????????????# | | ????????????????????????????????????### ##^^^^## | | ?????????????????????????????########## ## ## | | ???????????????????########??# % | | ???????????????????#!!!! !#??# = =+*] | | ???????????????????#!!!! !#??#[%####### %*% | | ??????????#######??##### ##??#%%#?????#==%## ## | | ??????????#"""" ######## #####=!#?????# %=## ## | | ??????????#" #?#####!% ######## | | ??????????#"""" #### ######### #?# + !%#??????# | | ??????????#######??# #???????# #?#[### *#??????# | | ??????????????????##"##??????# #?# #?# #??????# | | ??????????????????# #??????# #?#%#?# #??????# | | ??????############# * ########+"###=### #??????# | | ??????# = ! [% = #??????# | | ??????# % == #??????# | | ??????# =%[ #??????# | | ??????# #################### #########"#??????# | | ??????# #??????????????????# #???????# #??????# | | ??????#####??????????????????# #???????# #??????# | | ?????????????????????????????# #???????#*#??????# | | ???????????????############??# #???????#=#??????? | | ???????????????#""""""""""#??# #???????#%#??????? | | ???????????????#"""=!!*!/"#### #########[#??????? | | ???????????????#"" h @Y##" ##"""""##=#??????? | | ???????????????#"[ #######;### ### ###%#??????? | | ???????????????#"= ^ " "*#??????? | | ???????????????#"] h Y + ###??????? | | ???????????????#"! #######+### ## ##????????? | | ???????????????#"" #?# ## #?????????? | | ???????????????#"""!=[[!="##?# ###+####?????????? | | ???????????????#""""""""""#??# ### #????????????? | | ???????????????############??# + #????????????? | | ?????????????????????????????# ######????????????? | | ????????????????????????????## ###???????????????? | | ????????????????????????????#! ^!#???????????????? | | ????????????????????????????#! !#???????????????? | | ????????????????????????????##!!##???????????????? | | ?????????????????????????????####????????????????? | | ?????????????????????????????????????????????????? | | ?????????????????????????????????????????????????? | | ?????????????????????????????????????????????????? | | ?????????????????????????????????????????????????? | | ?????????????????????????????????????????????????? | | ?????????????????????????????????????????????????? | | ?????????????????????????????????????????????????? | | ?????????????????????????????????????????????????? | | ?????????????????????????????????????????????????? | | ?????????????????????????????????????????????????? | +----------------------------------------------------+ Best States ------------- Heat Dissipation 50 Energy Generation 27 Energy Capacity 325 Matter Stores 300 Matter Capacity 300 Sight Range 16 Terrain Scan Density 10 Additional Mass Support 9 Armor Coverage 150 Resistance: KI 20 Resistance: TH 20 Resistance: EX 20 Resistance: EM 20 Resistance: I 20 Resistance: S 20 Resistance: P 20 Core Shielding 20 Evasion (%) 71 Targeting Accuracy 6 Offensive Hacking 10 Item Schematics ----------------- System Shield | -8/Materials | Hacked Imp. VTOL Module | -8/Materials | Scanalyzed Adv. Targeting Computer | -8/Materials | Hacked Adv. Weight Redist. System | -8/Materials | Hacked Cesium-ion Thruster | -8/Materials | Hacked Lgt. Deuterium Engine | -8/Materials | Scanalyzed Robot Schematics ------------------ None Fabricated ------------ Nothing Alien Tech Used ----------------- None Achievements -------------- None Challenges ------------ None Game ------ Seed RecoilZhirovTearclaws Manual? 0 Play Time 01:28:45 Cumulative 37.5 hours Start 2023.09.15 @ 14:42:18 End 2023.09.15 @ 17:59:00 Sessions 1 Manual Loads 0 Difficulty Adventurer Special Mode None Game No. 11 Rogue 0 Adventurer 11 Explorer 0 Win Type - Total 0 Types 0/0/0/0/0/0/0/0/0 Lore% 26 Gallery% 31 Achievement% 29 Wizard Run 0 Options --------- ASCII 0 Keyboard 0 Movement Numpad Keybinds 0 Fullscreen 1 Font 24/Smallcaps Map View 76x50 Tactical HUD 0 Map Filters NONE Filters NONE Steam 1 RUN: 9a0d16e1-93b2-4ca7-973b-00647bde5145